Cogmind - Beta 11 @@@ ROGUE MODE // 2022.03.26 @ 12:57:27 Player: cptwinky Result: Escaped! Performance ------------- Evolutions (9) 4500 Regions Visited (32) 6400 Robots Destroyed (472) 2360 Value Destroyed (23275) 23275 Prototype IDs (66) 1320 Alien Tech Used (2) 400 Bonus (16805) 16805 TOTAL SCORE: 55060 Bonus ------- Triggered High Security 500 High Alert Combat Kills 5534 Follower Combat Kills 4398 Network Hubs Disabled 400 Met Data Miner 300 Met Imprinter 300 Destroyed Z-Imprinter 1000 Triggered Deep Caves Wall 500 Exposed GOLEM Chamber 500 Met Zhirov 300 Built Enhanced Grunts 300 A7 Reached Mainframe 300 Met R17 at Cetus 500 Scanned by Researcher 500 Win 3000 Friendly Fire -1527 Cogmind --------- Core Integrity 567/1600 Matter 299/300 Energy 100/100 System Corruption 23% Temperature Cool (0) Movement Treading (145) Location To Epsilon Eridani Parts ------- > --- POWER (2) -------- Assembled Flux Generator > --- PROPULSION (6) --- Biometal Heavy Treads Biometal Heavy Treads Biometal Heavy Treads > --- UTILITY (15) ----- Assembled Nanovents Assembled Nanovents Assembled Nanovents High-capacity Storage Unit Enhanced Optical Array 0b10 Alert Chip Assembled Combat Suite > --- WEAPON (3) ------- (None) > --- INVENTORY (20) --- Centrium Leg High-density Centrium Leg High-density Centrium Leg Advanced Signal Interpreter Advanced Component Analysis Suite Transdimensional Reconstructor Advanced Datajack Peak State ------------ > --- POWER ------------ Assembled Flux Generator > --- PROPULSION ------- Assembled Alloy Leg Assembled Alloy Leg Centrium Leg Centrium Leg High-density Centrium Leg High-density Centrium Leg > --- UTILITY ---------- Assembled Nanovents Assembled Nanovents Assembled Nanovents Assembled Nanovents High-capacity Storage Unit Assembled Biocell Array Assembled Biocell Array Assembled Suspension Frame Enhanced Optical Array 0b10 Alert Chip Assembled Combat Suite Assembled Alloy Armor Assembled Alloy Armor GOLEM Unit > --- WEAPON ----------- Assembled Focal Cannon Assembled Focal Cannon Assembled Focal Cannon > --- INVENTORY -------- Zionite Light DM Reactor Biometal Heavy Treads Biometal Heavy Treads Biometal Heavy Treads Centrium Leg Centrium Leg Zionite Biocell Advanced Signal Interpreter Advanced Component Analysis Suite Combat Drone Bay Hacking Drone Bay Transdimensional Reconstructor EMDS Fusion Bomb Launcher Advanced Datajack [Rating: 234] Favorites ----------- Power Heavy Deuterium Engine Engine Heavy Deuterium Engine Power Core Fusion Compressor Reactor Assembled Flux Generator Propulsion Armored Wheel Treads Advanced Treads Leg Assembled Alloy Leg Wheel Armored Wheel Utility Huge Storage Unit Device GOLEM Unit Storage Huge Storage Unit Processor Advanced Targeting Computer Hackware Hacking Suite Protection Assembled Alloy Armor Weapon Assembled Focal Cannon Energy Gun EM Pulse Gun Energy Cannon Assembled Focal Cannon Ballistic Gun Autogun Ballistic Cannon Bore Cannon Launcher Improved Grenade Launcher Special Weapon RU-N14's Throwing Claymores Impact Weapon Powered Hammer Special Melee Weapon Improved Datajack Build | -11 -10 -10 -9 -9 -8 -8 -7 -7 -7 -7 -7 -7 -6 -6 -6 -6 -6 -6 -5 -5 -5 -5 -5 -4 -4 -4 -4 -4 -4 -3 -2 -1 ------- Run | Scr Mat Min Mat Min Mat Sto Fac Was Fac Low Low Dat Pro Fac Low Low Zio Dee Pro Fac Upp Upp Zhi Pro Fac Ext Cet Arc Hub Res Res Acc Slots Evolved 18 | . . . 2 . 2 . 2 . . . . . . 2 . . . . . 2 . . . . 2 . . . . 2 2 2 Power . | . . . . . . . . . . . . . . . . . . . . . . . . . . . . . . . . . Propulsion 4 | . . . 1 . . . 1 . . . . . . 1 . . . . . . . . . . . . . . . 1 . . Utility 13 | . . . 1 . 2 . 1 . . . . . . 1 . . . . . 2 . . . . 1 . . . . 1 2 2 Weapon 1 | . . . . . . . . . . . . . . . . . . . . . . . . . 1 . . . . . . . Parts Attached 351 | 3 2 4 16 5 14 10 17 1 21 22 6 1 9 22 10 12 8 32 4 4 10 3 8 1 9 11 7 9 1 21 11 37 Power 13 | . . 1 4 . . . . . 2 1 . . . . 2 1 . . . . . . . . . . . . . . . 2 Engine 10 | . . 1 4 . . . . . 2 1 . . . . 1 1 . . . . . . . . . . . . . . . . Core 1 | . . . . . . . . . . . . . . . 1 . . . . . . . . . . . . . . . . . Reactor 2 | . . . . . . . . . . . . . . . . . . . . . . . . . . . . . . . . 2 Propulsion 73 | 2 . . 4 . 5 3 5 1 6 5 . . 2 4 . 2 . 3 . . . . 3 . . 2 2 2 1 1 6 14 Treads 37 | 2 . . 3 . 4 2 3 . 5 3 . . 1 3 . 1 . . . . . . . . . . 2 2 1 1 1 3 Leg 25 | . . . . . . . . . . . . . 1 . . . . 3 . . . . 3 . . 2 . . . . 5 11 Wheel 11 | . . . 1 . 1 1 2 1 1 2 . . . 1 . 1 . . . . . . . . . . . . . . . . Hover . | . . . . . . . . . . . . . . . . . . . . . . . . . . . . . . . . . Flight . | . . . . . . . . . . . . . . . . . . . . . . . . . . . . . . . . . Utility 159 | . 2 . 2 1 6 5 6 . 7 8 3 . 4 5 2 1 5 18 4 2 10 3 5 . 8 6 5 7 . 18 5 11 Device 86 | . . . . . 1 1 3 . 6 7 3 . 1 1 1 1 4 8 2 . 8 2 3 . 3 3 2 3 . 13 3 7 Storage 13 | . 1 . . . 1 2 . . . . . . 1 . . . . 2 . 1 1 . . . 1 . . 1 . 1 1 . Processor 13 | . 1 . 1 . 1 . 2 . 1 . . . . 1 1 . . . . . . . . . 2 . 1 . . 2 . . Hackware 3 | . . . . . 1 . . . . . . . . 2 . . . . . . . . . . . . . . . . . . Protection 44 | . . . 1 1 2 2 1 . . 1 . . 2 1 . . 1 8 2 1 1 1 2 . 2 3 2 3 . 2 1 4 Artifact . | . . . . . . . . . . . . . . . . . . . . . . . . . . . . . . . . . Weapon 106 | 1 . 3 6 4 3 2 6 . 6 8 3 1 3 13 6 8 3 11 . 2 . . . 1 1 3 . . . 2 . 10 Energy Gun 3 | 1 . 1 . . . . . . . . . . 1 . . . . . . . . . . . . . . . . . . . Energy Cannon 7 | . . . . . . . . . . . . . . 3 . 1 . 1 . . . . . . . . . . . . . 2 Ballistic Gun 1 | . . . . . . . . . . . . . . 1 . . . . . . . . . . . . . . . . . . Ballistic Cannon 42 | . . 2 3 3 2 2 4 . 4 4 2 . 2 5 3 3 . 3 . . . . . . . . . . . . . . Launcher 32 | . . . 2 1 1 . 2 . 2 3 1 1 . 2 2 3 1 . . . . . . . . 1 . . . 2 . 8 Special Weapon 10 | . . . 1 . . . . . . . . . . . . . 1 4 . 2 . . . 1 1 . . . . . . . Impact Weapon 9 | . . . . . . . . . . 1 . . . 2 1 1 1 3 . . . . . . . . . . . . . . Slashing Weapon . | . . . . . . . . . . . . . . . . . . . . . . . . . . . . . . . . . Piercing Weapon . | . . . . . . . . . . . . . . . . . . . . . . . . . . . . . . . . . Special Melee Weapon 2 | . . . . . . . . . . . . . . . . . . . . . . . . . . 2 . . . . . . Unidentified Prototypes 21 | . . . 1 . . . . . 2 1 . . 2 1 . 1 3 1 . . . . 4 . 1 . 2 . . . 1 1 Corrupted Parts 2 | . . . . . . . . . . . . . . . . . . . . . . . . . . . 1 1 . . . . System Corruption 6 | . . . . . . . . . . . . . . . . . . . . . . . . . . . 5 1 . . . . Parts Lost 54 | . . 1 . . . . . 2 . 3 . . 1 . . . . 6 . . 1 . . . 5 1 1 . . 1 3 29 Power 2 | . . . . . . . . . . . . . . . . . . . . . . . . . . . . . . . . 2 Propulsion 9 | . . . . . . . . . . 1 . . . . . . . 2 . . . . . . . . . . . . . 6 Utility 36 | . . . . . . . . 1 . 2 . . 1 . . . . 4 . . 1 . . . 4 1 1 . . 1 3 17 Weapon 7 | . . 1 . . . . . 1 . . . . . . . . . . . . . . . . 1 . . . . . . 4 Highest Loss Streak 18 | . . 1 . . . . . 2 . 3 . . 1 . . . . 3 . . 1 . . . 4 1 1 . . 1 1 18 To Critical Strikes 1 | . . . . . . . . . . . . . . . . . . . . . . . . . . . . . . . . 1 Average Slot Usage (%) 89 | . 98 100 100 100 99 99 99 86 98 83 93 100 99 94 93 93 92 89 87 87 87 88 84 83 88 89 82 80 80 80 83 86 Engine 4 | . 14 14 11 11 9 9 7 7 7 7 7 7 7 6 6 8 12 5 . . . . . . . . . . . . . . Reactor 2 | . . . . . . . . . . . . . . . . . . 3 6 5 5 5 5 5 5 5 5 5 5 4 4 2 Treads 10 | . 28 28 22 22 18 10 14 8 15 12 15 15 14 20 20 19 18 11 . . . . . . . . 7 10 10 9 3 . Leg 8 | . . . . . . . . . . . . . . . . . . 11 31 27 27 27 27 27 25 25 9 5 5 9 16 22 Wheel 8 | . . . 11 11 9 16 14 19 15 17 15 15 15 13 13 12 12 7 . . . . . . . . . . . . . . Device 10 | . . . . . . . 6 4 7 7 16 23 11 6 6 6 5 7 9 16 18 22 18 16 21 22 17 16 15 17 18 21 Storage 8 | . 14 14 11 11 9 9 7 7 7 7 7 7 7 6 6 6 6 8 12 11 10 11 11 11 10 10 10 9 10 9 8 10 Processor 11 | . 12 14 11 11 17 18 15 15 22 16 15 15 15 15 20 19 18 10 . . . . . . 4 5 5 5 5 9 8 7 Protection 7 | . . . 11 11 8 9 7 4 . 1 . . 10 7 6 6 6 8 14 16 13 10 11 11 7 7 12 13 15 9 9 8 Energy Cannon 4 | . . . . . . . . . . . . . . 1 . . . 4 12 10 11 11 11 11 14 13 15 15 15 12 11 9 Ballistic Cannon 6 | . . 24 21 21 17 17 15 9 13 6 12 14 14 10 12 9 6 6 . . . . . . . . . . . . . . Naked Turns . | . . . . . . . . . . . . . . . . . . . . . . . . . . . . . . . . . Heaviest Build 169 | 12 27 31 39 41 41 105 113 113 112 113 117 117 125 126 126 136 142 167 167 169 142 131 139 139 155 142 148 152 148 148 163 166 Greatest Support 204 | 40 40 40 12 12 12 24 24 36 24 36 24 24 24 24 24 28 28 136 136 136 156 156 168 168 168 168 165 180 180 180 180 204 Greatest Overweight (x) 13 | . . . 3 3 3 4 9 4 4 9 4 4 5 5 5 5 5 13 1 1 1 1 . . . . 1 . . 2 2 . Average Overweight (x) 2 | . . . 2 3 3 3 4 3 4 3 4 4 4 4 4 4 4 4 1 . . . . . . . . . . . . . Largest Inventory Capacity 25 | 8 15 15 15 15 15 25 25 25 25 25 25 25 25 25 25 25 25 25 25 25 20 20 20 20 20 20 20 20 20 20 20 20 Average Capacity 22 | 8 13 15 15 15 15 23 25 25 25 25 25 25 25 25 25 25 25 24 25 20 18 20 20 20 20 20 20 19 20 20 20 20 Most Carried 25 | 6 15 15 15 15 15 25 25 25 25 25 25 25 25 25 25 25 25 25 25 25 20 20 20 20 20 20 20 20 20 20 20 20 Average Carried 21 | 6 10 10 14 14 14 21 24 25 23 23 21 25 24 24 24 24 24 20 25 20 18 20 19 19 19 19 19 18 19 19 18 18 Final Capacity 25 | 8 15 15 15 15 15 25 25 25 25 25 25 25 25 25 25 25 25 25 25 20 20 20 20 20 20 20 20 20 20 20 20 20 Final Carried 25 | 6 11 15 15 15 15 25 25 25 23 22 25 25 24 25 25 25 25 25 25 20 20 20 20 20 20 20 20 20 20 19 20 7 Class Distribution -------------------- 52% | Mutant 28% | Golem 7% | Scavenger-Golem 6% | Derelict-Mutant Dominant Class ---------------- Mutant | -10/Materials Mutant | -10/Mines Mutant | -9/Materials Mutant | -9/Mines Mutant | -8/Materials Commander-Mutant | -8/Storage Mutant | -7/Factory Mutant | -7/Waste Mutant | -7/Factory Mutant | -7/Lower Caves Mutant | -7/Lower Caves Mutant | -7/Data Miner Mutant | -6/Proximity Caves Mutant | -6/Factory Mutant | -6/Lower Caves Derelict-Mutant | -6/Lower Caves Mutant | -6/Zion Golem | -6/Deep Caves Golem | -5/Proximity Caves Golem | -5/Factory Golem | -5/Upper Caves Golem | -5/Upper Caves Mutant | -5/Zhirov Golem | -4/Proximity Caves Golem | -4/Factory Golem | -4/Extension Scavenger-Mutant | -4/Cetus Scavenger-Golem | -4/Archives Scavenger-Golem | -4/Hub_04(d) Scavenger-Golem | -3/Research Scavenger-Golem | -2/Research Golem | -1/Access Resources | -11 -10 -10 -9 -9 -8 -8 -7 -7 -7 -7 -7 -7 -6 -6 -6 -6 -6 -6 -5 -5 -5 -5 -5 -4 -4 -4 -4 -4 -4 -3 -2 -1 ----------- Run | Scr Mat Min Mat Min Mat Sto Fac Was Fac Low Low Dat Pro Fac Low Low Zio Dee Pro Fac Upp Upp Zhi Pro Fac Ext Cet Arc Hub Res Res Acc Matter Collected 10326 | 184 66 139 331 236 568 470 473 . 548 2416 784 . 389 492 188 187 133 779 60 40 95 10 110 10 85 154 106 90 20 287 91 785 Remotely . | . . . . . . . . . . . . . . . . . . . . . . . . . . . . . . . . . Salvage Created 24673 | . 269 111 459 140 750 465 647 . 557 658 305 . 452 681 147 150 . 1924 306 346 540 460 155 32 1442 2129 386 354 824 2929 2090 4965 Parts 1091 | . 22 4 48 16 45 22 35 . 24 15 10 . 23 34 6 12 . 30 18 11 16 24 5 5 78 77 15 22 31 137 96 210 Haulers Intercepted 18 | . . . 4 . 4 6 2 . 1 . . . . . . . . . . 1 . . . . . . . . . . . . Recyclers Shooed 7 | . . . . . . 1 . . 1 . . . . . . . . . . . . . . . 1 1 . . . 1 1 1 Parts Field Recycled . | . . . . . . . . . . . . . . . . . . . . . . . . . . . . . . . . . Retrieved Matter . | . . . . . . . . . . . . . . . . . . . . . . . . . . . . . . . . . Parts Self-Destructed 130 | . . . . . . . . . . 12 12 . 32 . 10 10 1 . 18 . 8 24 2 1 . . . . . . . . Prevented . | . . . . . . . . . . . . . . . . . . . . . . . . . . . . . . . . . Kills | -11 -10 -10 -9 -9 -8 -8 -7 -7 -7 -7 -7 -7 -6 -6 -6 -6 -6 -6 -5 -5 -5 -5 -5 -4 -4 -4 -4 -4 -4 -3 -2 -1 ------- Run | Scr Mat Min Mat Min Mat Sto Fac Was Fac Low Low Dat Pro Fac Low Low Zio Dee Pro Fac Upp Upp Zhi Pro Fac Ext Cet Arc Hub Res Res Acc Combat Hostiles Destroyed 432 | . 4 5 16 9 16 5 18 . 13 15 4 . 7 12 5 10 . 76 5 7 8 7 . 4 22 28 4 2 9 38 17 66 Melee 1 | . . . . . . . . . . . . . . . . . . 1 . . . . . . . . . . . . . . Guns 5 | . 4 1 . . . . . . . . . . . . . . . . . . . . . . . . . . . . . . Cannons 262 | . . 3 7 5 11 5 12 . 9 7 3 . 7 9 1 . . 22 5 4 7 7 . 1 11 19 4 2 9 34 17 41 AOE 159 | . . . 9 4 5 . 6 . 4 8 1 . . 3 4 10 . 51 . 3 . . . 3 11 8 . . . 4 . 25 Classes Destroyed 31 | . 6 2 2 2 3 . 1 . . 6 . . 1 . . . . 3 . . . . . . 2 1 . . . . 1 1 Worker 18 | . . . . 2 1 . . . . . . . . 2 . . . . . 2 . . . . . . . . 1 2 2 6 Builder 9 | . . . . . 2 . . . . . . . . . . . . . . . . . . . . 2 . . . 1 . 4 Tunneler 1 | . . . . 1 . . . . . . . . . . . . . . . . . . . . . . . . . . . . Hauler 18 | . . . 4 . 4 6 2 . 1 . . . . . . . . . . 1 . . . . . . . . . . . . Recycler 16 | . 1 . . . 1 . . . 3 . . . . . . . . . . . . . . . . 1 . . 1 2 3 4 Carrier 3 | . . . . . . . . . . . . . . . . . . . . . . . . . . . . . . . 1 2 Minesweeper 2 | . . . . . . . . . . 1 . . . . . . . . . . 1 . . . . . . . . . . . Mechanic 4 | . 1 . . . . 1 . . . . . . . . . . . . . . . . . . . 1 . . . . . 1 Operator 9 | . 1 . 1 . . . . . . . . . . 1 . . . . . . . . . . . . . 5 . . . 1 Watcher 28 | . 1 . 1 . 2 . . . 1 . . . . . . . . . . . . . . . 7 1 2 . 1 4 4 4 Swarmer 71 | . 3 . 9 6 . . 4 . 4 5 1 . . 2 4 10 . . . . . . . 4 5 . 2 . . 7 . 5 Saboteur 3 | . . . . . . . . . . . . . . . . . . . . . . . . . . 1 . . . . . 2 Grunt 127 | . 1 2 4 3 12 2 8 . 6 3 2 . . 6 . . . . 3 3 2 3 . . 9 12 1 . 6 12 1 26 Brawler 16 | . . . . . 1 1 . . . 2 . . 3 1 . . . . . . . . . . . 4 . . . 1 . 3 Duelist 9 | . . . . . . . . . . 2 . . . . . . . . . . . . . . . . . . . 2 . 5 Protector 5 | . . . . . . . . . . . . . 1 . . . . . . . . . . . . . . . 1 1 1 1 Sentry 42 | . . . 3 . 2 2 2 . 1 2 1 . . . 1 . . . . 1 1 1 . . . 10 . 2 . 5 6 2 Demolisher 1 | . . 1 . . . . . . . . . . . . . . . . . . . . . . . . . . . . . . Specialist 4 | . . . . . . . . . . . . . . . . . . . . . . . . . 2 . . . . 2 . . Hunter 28 | . . . . . 1 . 3 . 1 . . . 2 1 . . . . . 1 . 2 . . 4 . . . 2 . 1 10 Programmer 34 | . . . . . . . 1 . 1 . . . 1 2 . . . . 2 2 . . . . 1 . . . . 7 6 11 Heavy 3 | . . . . . . . . . . . . . . . . . . . . . . . . . 1 . . . . 1 1 . Behemoth 5 | . . . . . . . . . . 1 . . . . . . . . . . . 1 . . . 1 . . . . 1 1 Cetus Guard 1 | . . . . . . . . . . . . . . . . . . . . . . . . . . . 1 . . . . . Enhanced Grunt 1 | . . . . . . . . . . . . . 1 . . . . . . . . . . . . . . . . . . . Investigator 1 | . . . . . . . . . . . . . . . . . . . . . . . . . . . . . . . . 1 Z-Technician 4 | . . . . . . . . . . . . . . . . . . 4 . . . . . . . . . . . . . . Z-Light 6 | . . . . . . . . . . . . . . . . . . 6 . . . . . . . . . . . . . . Decomposer 5 | . . . . . . . . . . 4 . . . . . . . . . . 1 . . . . . . . . . . . Samaritan 6 | . . . . . . . . . . 3 3 . . . . . . . . . . . . . . . . . . . . . Tinkerer 1 | . . . . . . . . . . 1 . . . . . . . . . . . . . . . . . . . . . . Assembler 2 | . . . . . . . . . . . . . . . . . . 2 . . . . . . . . . . . . . . Assembled 48 | . . 2 . . . . . . . . . . . . . . . 46 . . . . . . . . . . . . . . Golem 24 | . . . . . . . . . . . . . . . . . . 24 . . . . . . . . . . . . . . Thug 2 | . . . . . . . . . . . . . . . . . . . . . 1 . . . . . 1 . . . . . Butcher 3 | . . . . . . . . . . . . . . . . . . . . . 3 . . . . . . . . . . . Mutant 3 | . . . . . . . . . . 1 . . . . . 1 . . . . 1 . . . . . . . . . . . Commander 1 | . . . . . . . . . . . . . . . 1 . . . . . . . . . . . . . . . . . Best Kill Streak 57 | . 4 1 10 5 8 2 5 . 5 3 2 . 2 4 4 4 . 57 3 4 4 3 . 4 10 10 2 4 4 6 6 11 Combat Bots Only 55 | . 3 1 9 3 5 1 5 . 4 3 2 . 2 3 4 4 . 55 3 3 4 3 . 4 9 9 2 2 4 6 4 9 Max Kills in Single Turn 9 | . 1 1 4 2 2 1 3 . 5 3 1 . 1 2 3 3 . 9 2 2 1 1 . 2 5 4 1 1 1 2 2 5 Gunslinging . | . . . . . . . . . . . . . . . . . . . . . . . . . . . . . . . . . Exploded 9 | . . . 4 2 2 . 3 . 4 3 1 . . 2 3 3 . 9 . 1 . . . 2 5 4 . . . 2 . 3 Melee 1 | . . . . . . . . . . . . . . . . . . 1 . . . . . . . . . . . . . . Uniques/NPCs Destroyed 1 | . . . . . . . . . . . . . . . . . . 1 . . . . . . . . . . . . . . Z-Imprinter (-6/Deep Caves) Combat | -11 -10 -10 -9 -9 -8 -8 -7 -7 -7 -7 -7 -7 -6 -6 -6 -6 -6 -6 -5 -5 -5 -5 -5 -4 -4 -4 -4 -4 -4 -3 -2 -1 -------- Run | Scr Mat Min Mat Min Mat Sto Fac Was Fac Low Low Dat Pro Fac Low Low Zio Dee Pro Fac Upp Upp Zhi Pro Fac Ext Cet Arc Hub Res Res Acc Damage Taken 26601 | . 78 271 381 182 523 647 454 117 612 801 55 . 558 604 49 96 . 1848 133 540 266 438 . 67 2321 794 369 129 501 2559 760 10448 Core 2677 | . 23 17 17 23 38 92 47 31 34 125 . . 63 35 . 13 . 264 . 17 . 20 . . 302 92 25 . 43 225 98 1033 Absorbed by Shields 2293 | . . . . . . . . . . . . . . . . . . . . . 6 . . . . 63 157 . . 671 . 1396 Reduced by Siege Mode 177 | . . . . . . . . . . . . . . . . . . . . . . . . . . . 16 . . 146 15 . Redirected to Shielding 154 | . . . . . . . . . . . . . . . . . . . . . . . . . 154 . . . . . . . Regen/Repaired (Parts) 388 | . . . . . . 101 . . . . . . . . . . . . . . . . . . . . . . . . . 287 Core Remaining (%) 75 | 100 . 84 . 90 . 76 . . . . . . 57 . . . . . 63 . . . . 96 . . . . 59 82 93 35 Volleys Fired 1109 | . 14 17 33 20 45 40 35 . 35 41 6 . 21 38 7 11 . 157 10 23 25 18 2 8 39 58 24 15 22 113 61 171 Largest 3 | . 2 2 2 2 2 2 2 . 2 1 2 . 2 2 2 1 . 2 2 2 2 2 1 2 3 3 3 3 3 3 3 3 Hottest 147 | . 80 90 78 78 83 83 92 . 88 60 114 . 114 147 114 90 . 114 50 50 50 50 25 50 75 75 75 75 75 75 75 77 Shots Fired 1999 | . 28 35 53 34 85 78 67 . 62 41 10 . 42 57 11 11 . 181 20 32 50 36 2 15 86 144 51 41 65 241 140 281 Gun 44 | . 28 16 . . . . . . . . . . . . . . . . . . . . . . . . . . . . . . Cannon 1861 | . . 19 50 29 80 78 65 . 61 34 8 . 42 56 8 4 . 156 20 27 50 36 2 13 84 141 51 41 65 237 140 264 Launcher 60 | . . . 3 5 5 . 2 . 1 7 2 . . 1 3 7 . . . . . . . . . 3 . . . 4 . 17 Special 34 | . . . . . . . . . . . . . . . . . . 25 . 5 . . . 2 2 . . . . . . . Kinetic 580 | . . 19 50 29 80 78 65 . 61 34 8 . 42 37 8 2 . 67 . . . . . . . . . . . . . . Thermal 1271 | . . 4 . . . . . . . . . . . 19 . 2 . 89 20 27 50 36 2 13 84 141 51 41 65 237 140 250 Explosive 94 | . . . 3 5 5 . 2 . 1 7 2 . . 1 3 7 . 25 . 5 . . . 2 2 3 . . . 4 . 17 Electromagnetic 54 | . 28 12 . . . . . . . . . . . . . . . . . . . . . . . . . . . . . 14 Robot Hit Streak 40 | . 2 5 11 8 12 13 9 . 10 15 1 . 3 7 6 3 . 30 11 13 15 10 4 1 19 23 7 10 10 24 40 33 Robot Miss Streak 8 | . 3 3 4 2 2 3 4 . 8 1 2 . 4 3 1 . . 7 1 3 1 1 . 1 1 3 3 2 4 2 2 2 Penetration Max 1 | . . . . . . . . . . . 1 . 1 1 . . . . . . . . . . . . . . . . . . Secondary Targets . | . . . . . . . . . . . . . . . . . . . . . . . . . . . . . . . . . Shots Hit Robots 1347 | . 11 23 28 17 58 47 45 . 54 42 7 . 17 27 6 2 . 110 12 25 39 26 2 1 59 139 34 30 39 144 94 209 Core Hits 1009 | . 9 9 21 13 38 18 36 . 60 27 6 . 10 25 6 11 . 200 5 13 9 11 2 3 40 63 13 17 25 82 50 187 Critical Kills 28 | . . . . . . . . . . . 3 . 7 8 2 1 . 7 . . . . . . . . . . . . . . Critical Parts Destroyed 29 | . . . . . . . . . . 2 3 . 6 5 2 . . 11 . . . . . . . . . . . . . . Critical Strikes 81 | . . 1 . . 3 3 4 . 1 6 6 . 14 14 5 1 . 22 . . . . . . 1 . . . . . . . Destroy 57 | . . . . . . . . . . . 5 . 14 14 5 1 . 18 . . . . . . . . . . . . . . Blast 15 | . . . . . 3 3 4 . 1 4 . . . . . . . . . . . . . . . . . . . . . . Corrupt 1 | . . 1 . . . . . . . . . . . . . . . . . . . . . . . . . . . . . . Smash 5 | . . . . . . . . . . 2 1 . . . . . . 2 . . . . . . . . . . . . . . Sever 3 | . . . . . . . . . . . . . . . . . . 2 . . . . . . 1 . . . . . . . Melee Attacks 104 | . . . . . . . . . . 32 3 . . 3 16 1 1 12 . . . . . . . 36 . . . . . . Impact 68 | . . . . . . . . . . 32 3 . . 3 16 1 1 12 . . . . . . . . . . . . . . Slashing . | . . . . . . . . . . . . . . . . . . . . . . . . . . . . . . . . . Piercing . | . . . . . . . . . . . . . . . . . . . . . . . . . . . . . . . . . Sneak Attacks 48 | . . . . . . . . . . 9 3 . . . . . . . . . . . . . . 36 . . . . . . Combat Hostiles . | . . . . . . . . . . . . . . . . . . . . . . . . . . . . . . . . . Follow-up Attacks . | . . . . . . . . . . . . . . . . . . . . . . . . . . . . . . . . . Damage Inflicted 78908 | . 161 417 1213 861 1979 1178 1519 . 1435 3322 427 . 546 1110 507 708 . 12613 646 2368 1769 1207 80 417 4179 6618 1852 1357 1863 8084 4615 15857 Guns 305 | . 159 146 . . . . . . . . . . . . . . . . . . . . . . . . . . . . . . Cannons 50048 | . . 254 642 339 1311 1178 1086 . 978 1543 103 . 546 885 122 33 . 2795 646 994 1769 1207 80 . 2602 5278 1852 1357 1863 7062 4528 8995 Explosions 25215 | . . . 571 522 668 . 433 . 457 974 98 . . 225 385 675 . 8306 . 1189 . . . 375 1475 1285 . . . 1022 . 6555 Melee 1624 | . . . . . . . . . . 805 226 . . . . . . 593 . . . . . . . . . . . . . . Ramming 505 | . 2 17 . . . . . . . . . . . . . . . . . . . . . . 37 55 . . . . 87 307 Kinetic 9428 | . . 254 642 339 1311 1178 1086 . 978 1543 103 . 546 648 122 33 . 645 . . . . . . . . . . . . . . Thermal 41399 | . . 25 . 119 . . . . . . . . . 300 . . . 2150 646 994 1769 1207 80 . 3371 5278 1852 1357 1863 7062 4528 8798 Explosive 24144 | . . . 571 403 668 . 433 . 457 974 98 . . 93 385 675 . 8306 . 1189 . . . 375 706 1285 . . . 1022 . 6504 Electromagnetic 597 | . 159 121 . . . . . . . . . . . 69 . . . . . . . . . . . . . . . . . 248 Impact 1624 | . . . . . . . . . . 805 226 . . . . . . 593 . . . . . . . . . . . . . . Slashing 1211 | . . . . . . . . . . . . . . . . . . 919 . 185 . . . 42 65 . . . . . . . Piercing . | . . . . . . . . . . . . . . . . . . . . . . . . . . . . . . . . . Highest Corruption 23 | . 2 2 . . . . . 6 7 . . . . . . . . . 1 . . . . . 2 . 5 1 4 12 2 23 Average Corruption 4 | . 1 2 . . . . . 6 5 . . . . . . . . . 1 . . . . . 1 . 2 1 3 6 1 6 Corruption Purged 24 | . . . . . . . . . 9 . . . . . . . . . . . . . . . 2 . 4 2 . 7 . . Corruption Blocked 1 | . . . . . . . . . . . . . . 1 . . . . . . . . . . . . . . . . . . Effects 108 | . . 13 . . . . . 4 10 . . . . . . . . . 1 . . . . . 2 . 7 . 5 7 8 51 Message Errors 25 | . . 5 . . . . . . 3 . . . . . . . . . 1 . . . . . . . 1 . . 2 3 10 Matter Fused 29 | . . 3 . . . . . 2 1 . . . . . . . . . . . . . . . 1 . 5 . 2 1 2 12 Heat Flow Errors 15 | . . 1 . . . . . 2 2 . . . . . . . . . . . . . . . 1 . 1 . 2 . . 6 Energy Discharges 5 | . . . . . . . . . 2 . . . . . . . . . . . . . . . . . . . . . 1 2 Parts Rejected 6 | . . . . . . . . . . . . . . . . . . . . . . . . . . . . . . 1 . 5 Data Loss (minor) 14 | . . 2 . . . . . . 1 . . . . . . . . . . . . . . . . . . . . 1 2 8 Data Loss (major) 2 | . . 1 . . . . . . . . . . . . . . . . . . . . . . . . . . . . . 1 Misfires 3 | . . 1 . . . . . . . . . . . . . . . . . . . . . . . . . . . 1 . 1 Alerts 2 | . . . . . . . . . 1 . . . . . . . . . . . . . . . . . . . . . . 1 Misdirections 2 | . . . . . . . . . . . . . . . . . . . . . . . . . . . . . . . . 2 Weapon Failures 5 | . . . . . . . . . . . . . . . . . . . . . . . . . . . . . 1 1 . 3 Overload Shots . | . . . . . . . . . . . . . . . . . . . . . . . . . . . . . . . . . Overflow Damage 3478 | . . 14 83 45 22 31 12 . 127 794 186 . . 36 16 26 . 504 40 110 156 55 . 41 95 105 26 82 19 226 147 480 Projectiles 1694 | . . 14 3 14 22 31 12 . 10 140 . . . . . . . 160 40 82 156 55 . . 42 81 26 82 19 216 130 359 Explosions 737 | . . . 80 31 . . . . 117 9 . . . 36 16 26 . 185 . 28 . . . 41 31 24 . . . 10 . 103 Melee 1047 | . . . . . . . . . . 645 186 . . . . . . 159 . . . . . . 22 . . . . . 17 18 Knockbacks 101 | . . 4 2 1 19 8 7 . 23 9 . . 5 5 1 . . 8 . . . . . . . 3 . . . . 2 4 Impact 15 | . . . . . . . . . . . . . . . . . . 7 . . . . . . . 2 . . . . 2 4 Kinetic 80 | . . 4 2 1 17 8 7 . 22 9 . . 4 5 1 . . . . . . . . . . . . . . . . . Secondary 6 | . . . . . 2 . . . 1 . . . 1 . . . . 1 . . . . . . . 1 . . . . . . Self-Inflicted Damage 790 | . . . 88 7 32 . . . 127 . . . . 21 . 26 . . . . . . . . 246 . . . . 85 . 158 Shots 17 | . . . 2 1 1 . . . 2 . . . . 1 . 1 . . . . . . . . 3 . . . . 2 . 4 Rammed 7 | . 1 3 . . . . . . . . . . . . . . . . . . . . . . . . . . . . . 3 Targets Rammed 36 | . 1 3 . . . . . . . . . . . . . . . . . . . . . . 1 3 . . . . 5 23 Kicked 29 | . . . . . . . . . . . . . . . . . . . . . . . . . 1 3 . . . . 5 20 Crushed . | . . . . . . . . . . . . . . . . . . . . . . . . . . . . . . . . . Highest Temperature 309 | . 108 267 84 54 135 278 120 116 255 26 108 . 261 13 78 80 . 309 1 2 10 16 . . 166 . 171 . 267 17 . 244 Average Temperature 53 | . 35 88 25 19 32 80 21 61 91 10 48 . 129 13 31 21 . 61 1 2 8 8 . . 49 . 89 . 103 13 . 102 Received Heat Transfer 3882 | . . 78 51 18 216 351 78 . 159 144 9 . 36 189 . . . 320 30 183 41 93 . . 310 195 31 27 66 306 72 879 Effects 6 | . . . . . . 2 . . . . . . . . . . . 4 . . . . . . . . . . . . . . Energy Bleed 3 | . . . . . . 2 . . . . . . . . . . . 1 . . . . . . . . . . . . . . Interference 3 | . . . . . . . . . . . . . . . . . . 3 . . . . . . . . . . . . . . Siege Activations 15 | . . . . . . . . . . . . . . . . . . . . . . . . . . . 1 2 . 10 2 . Total Turns 261 | . . . . . . . . . . . . . . . . . . . . . . . . . . . 8 16 . 193 44 . Longest Duration 45 | . . . . . . . . . . . . . . . . . . . . . . . . . . . 8 9 . 45 24 . Robots Corrupted 1 | . . 1 . . . . . . . . . . . . . . . . . . . . . . . . . . . . . . Combat Hostiles 1 | . . 1 . . . . . . . . . . . . . . . . . . . . . . . . . . . . . . Parts Fried 9 | . . . . . . . . . . 6 1 . . . . . . . . . . . . . . . 1 . . . . 1 Impact Corruptions 52 | . . . . . . . . . . 29 16 . . . . . . 4 . . . . . . 1 . . . . . 1 1 Robots Melted 2 | . . . . . . . . . . . . . . . . . . . . . 1 . . . . 1 . . . . . . Combat Hostiles 2 | . . . . . . . . . . . . . . . . . . . . . 1 . . . . 1 . . . . . . Parts Melted 26 | . . . . . . . . . . 1 . . . . . . . . . 1 . 2 . . 2 3 1 1 . 2 8 5 Heat Transferred 21347 | . . 74 . 150 . . . . . . . . . 50 . . . 275 325 525 900 650 50 . 1975 2825 1000 775 1022 3774 2400 4577 Parts Sabotaged . | . . . . . . . . . . . . . . . . . . . . . . . . . . . . . . . . . Parts Stolen . | . . . . . . . . . . . . . . . . . . . . . . . . . . . . . . . . . Parts Stripped . | . . . . . . . . . . . . . . . . . . . . . . . . . . . . . . . . . Power Chain Reactions 1 | . . . . . . . . . . . . . . 1 . . . . . . . . . . . . . . . . . . Missiles Intercepted . | . . . . . . . . . . . . . . . . . . . . . . . . . . . . . . . . . Alert | -11 -10 -10 -9 -9 -8 -8 -7 -7 -7 -7 -7 -7 -6 -6 -6 -6 -6 -6 -5 -5 -5 -5 -5 -4 -4 -4 -4 -4 -4 -3 -2 -1 ------- Run | Scr Mat Min Mat Min Mat Sto Fac Was Fac Low Low Dat Pro Fac Low Low Zio Dee Pro Fac Upp Upp Zhi Pro Fac Ext Cet Arc Hub Res Res Acc Peak Influence 2248 | . 118 76 445 507 571 673 334 121 525 . . . . 833 . . . . . 352 . . . . 1142 1323 1417 765 801 767 753 2248 Initial 705 | . . 21 . 114 119 180 242 116 63 . . . . 54 . . . . . 31 . . . . . 554 705 566 160 315 431 415 Average 484 | . 55 36 141 344 423 386 172 107 302 . . . . 514 . . . . . 146 . . . . 259 719 1048 638 535 432 488 1140 Maximum Alert Level 5 | . . . 2 2 2 2 1 . 2 . . . . 3 . . . . . 1 . . . . 4 4 4 3 3 3 3 5 Low Security (%) 23 | 100 100 100 73 . 12 19 57 100 17 . . . . 9 . . . . . 90 . . . . 53 . . . 2 3 . . Level 1 20 | . . . 3 65 15 26 42 . 71 . . . . 7 . . . . . 9 . . . . 26 5 . . 22 49 18 . Level 2 37 | . . . 22 33 72 54 . . 11 . . . . 66 . . . . . . . . . . 2 50 2 61 58 42 79 22 Level 3 12 | . . . . . . . . . . . . . . 16 . . . . . . . . . . 15 30 65 38 16 4 2 29 Level 4 5 | . . . . . . . . . . . . . . . . . . . . . . . . . 2 14 31 . . . . 27 Level 5 . | . . . . . . . . . . . . . . . . . . . . . . . . . . . . . . . . . High Security 2 | . . . . . . . . . . . . . . . . . . . . . . . . . . . . . . . . 20 Max Security . | . . . . . . . . . . . . . . . . . . . . . . . . . . . . . . . . . Squads Dispatched 91 | . 2 1 2 . 2 7 4 . 6 . . . 1 7 . . . . . 2 . . . . 9 5 . . 3 8 6 26 Investigation 17 | . 1 1 . . 1 1 2 . 2 . . . . 4 . . . . . 1 . . . . 1 . . . 2 . . 1 Extermination 13 | . . . . . . . 1 . 1 . . . . 2 . . . . . . . . . . 1 . . . . 3 2 3 Reinforcement 26 | . 1 . 2 . 1 2 1 . 2 . . . . 1 . . . . . 1 . . . . 4 1 . . 1 4 2 3 Assault 29 | . . . . . . 3 . . . . . . 1 . . . . . . . . . . . 1 4 . . . 1 1 18 Garrison 6 | . . . . . . 1 . . 1 . . . . . . . . . . . . . . . 2 . . . . . 1 1 Intercept . | . . . . . . . . . . . . . . . . . . . . . . . . . . . . . . . . . Searches Triggered . | . . . . . . . . . . . . . . . . . . . . . . . . . . . . . . . . . Data Miner Redirects 4 | . . . . . . . . . . . . . . . . . . . . . . . . . . . . . . . 1 3 Construction Impeded 7 | . . . . . . . . . . . . . . . . . . . . . . . . . 1 1 . . 1 1 1 2 Haulers Reinforced 2 | . . . . . . . . . 1 . . . . . . . . . . 1 . . . . . . . . . . . . Active Scanning Responses . | . . . . . . . . . . . . . . . . . . . . . . . . . . . . . . . . . Cargo Convoy Interrupts . | . . . . . . . . . . . . . . . . . . . . . . . . . . . . . . . . . Stealth | -11 -10 -10 -9 -9 -8 -8 -7 -7 -7 -7 -7 -7 -6 -6 -6 -6 -6 -6 -5 -5 -5 -5 -5 -4 -4 -4 -4 -4 -4 -3 -2 -1 --------- Run | Scr Mat Min Mat Min Mat Sto Fac Was Fac Low Low Dat Pro Fac Low Low Zio Dee Pro Fac Upp Upp Zhi Pro Fac Ext Cet Arc Hub Res Res Acc Distress Signals 25 | . 1 . 3 . 2 2 1 . 1 . . . 1 . . . . . . . . . . . 2 4 2 . . 3 2 1 Communications Jammed . | . . . . . . . . . . . . . . . . . . . . . . . . . . . . . . . . . Distress Signals . | . . . . . . . . . . . . . . . . . . . . . . . . . . . . . . . . . Times Spotted 727 | . 14 11 26 8 20 51 21 6 19 18 6 . 16 28 6 5 . 83 5 8 9 7 . 4 35 57 29 12 16 51 26 130 Peak Tracking Total 37 | . 4 5 8 3 3 9 5 6 5 7 3 . 7 4 3 4 . 36 3 5 3 3 . 4 9 12 8 1 4 7 7 37 Tactical Retreats 16 | . . 1 1 . . . . . 1 1 . . 1 . . . . 5 . . . . . . . 1 . . . 2 1 2 Traps | -11 -10 -10 -9 -9 -8 -8 -7 -7 -7 -7 -7 -7 -6 -6 -6 -6 -6 -6 -5 -5 -5 -5 -5 -4 -4 -4 -4 -4 -4 -3 -2 -1 ------- Run | Scr Mat Min Mat Min Mat Sto Fac Was Fac Low Low Dat Pro Fac Low Low Zio Dee Pro Fac Upp Upp Zhi Pro Fac Ext Cet Arc Hub Res Res Acc Traps Triggered 12 | . 2 . . . . 1 3 . 1 . . . . . . . . . . . . . . . . 2 . . . . . 3 Indirectly . | . . . . . . . . . . . . . . . . . . . . . . . . . . . . . . . . . Trap Hack Attempts . | . . . . . . . . . . . . . . . . . . . . . . . . . . . . . . . . . Triggered . | . . . . . . . . . . . . . . . . . . . . . . . . . . . . . . . . . Disarmed 8 | . . . 8 . . . . . . . . . . . . . . . . . . . . . . . . . . . . . Reprogrammed . | . . . . . . . . . . . . . . . . . . . . . . . . . . . . . . . . . Reused 3 | . . . . . . . . . . 3 . . . . . . . . . . . . . . . . . . . . . . Traps Extracted . | . . . . . . . . . . . . . . . . . . . . . . . . . . . . . . . . . Installed 3 | . . . . . . . . . . 3 . . . . . . . . . . . . . . . . . . . . . . Triggered 3 | . . . . . . . . . . 3 . . . . . . . . . . . . . . . . . . . . . . Most Traps Carried 4 | . . . . . . . . . . 3 . . . . . . . . . . 4 . . . . . . . . . . . Machines | -11 -10 -10 -9 -9 -8 -8 -7 -7 -7 -7 -7 -7 -6 -6 -6 -6 -6 -6 -5 -5 -5 -5 -5 -4 -4 -4 -4 -4 -4 -3 -2 -1 ---------- Run | Scr Mat Min Mat Min Mat Sto Fac Was Fac Low Low Dat Pro Fac Low Low Zio Dee Pro Fac Upp Upp Zhi Pro Fac Ext Cet Arc Hub Res Res Acc Machines Disabled 64 | . . . . 1 3 5 1 . 6 1 . . 1 5 2 . . 2 . 1 . . . . 21 1 1 1 . 1 2 9 Max in Single Turn 7 | . . . . 1 2 1 1 . 4 1 . . 1 1 1 . . 1 . 1 . . . . 7 1 1 1 . 1 1 2 Garrison Access 9 | . . . . . . 1 . . . . . . . 1 . . . . . . . . . . 1 . . . . 2 2 2 Network Hub 2 | . . . . . . . . . . . . . . . . . . . . . . . . . . . . . 2 . . . Energy Cycler 1 | . . . . . . . . . . . . . . . . . . . . . . . . . . . . . . . . 1 Machines Sabotaged 2 | . . . . . . . . . . . . . . . . . . . . . . . . . . . . . 2 . . . Garrisons Compromised . | . . . . . . . . . . . . . . . . . . . . . . . . . . . . . . . . . Overloaded Fab Kills . | . . . . . . . . . . . . . . . . . . . . . . . . . . . . . . . . . Hacking | -11 -10 -10 -9 -9 -8 -8 -7 -7 -7 -7 -7 -7 -6 -6 -6 -6 -6 -6 -5 -5 -5 -5 -5 -4 -4 -4 -4 -4 -4 -3 -2 -1 --------- Run | Scr Mat Min Mat Min Mat Sto Fac Was Fac Low Low Dat Pro Fac Low Low Zio Dee Pro Fac Upp Upp Zhi Pro Fac Ext Cet Arc Hub Res Res Acc Machines Accessed 74 | . 2 1 6 1 3 7 1 . 6 2 . 3 . 12 1 . . . . 1 1 1 4 . 4 2 . . 2 7 3 4 Terminals 31 | . 2 . 5 . 2 4 1 . 3 . . . . 7 . . . . . . . . . . 1 1 . . 2 2 . 1 Fabricators 7 | . . . . . . . . . 1 . . . . 3 . . . . . 1 . . . . . . . . . 1 1 . Repair Stations 6 | . . . . . . 2 . . 1 . . . . . . . . . . . . . . . 1 . . . . . 1 1 Recycling Units 7 | . . . . . . . . . . . . . . 1 . . . . . . . . . . 2 1 . . . 2 . 1 Scanalyzers 3 | . . . 1 . 1 . . . 1 . . . . . . . . . . . . . . . . . . . . . . . Garrison Access 6 | . . . . . . 1 . . . . . . . 1 . . . . . . . . . . . . . . . 2 1 1 Total Hacks 238 | . 5 1 26 1 13 21 2 . 19 2 . 23 . 33 7 . . . . 4 1 1 17 . 12 4 . . 3 17 11 15 Successful 145 | . 3 1 16 1 8 11 . . 13 2 . 23 . 15 7 . . . . 3 1 1 17 . 5 3 . . 2 7 4 2 Failed 93 | . 2 . 10 . 5 10 2 . 6 . . . . 18 . . . . . 1 . . . . 7 1 . . 1 10 7 13 Catastrophic 24 | . . . 1 . . 4 . . . . . . . 6 . . . . . . . . . . 1 1 . . 1 6 . 4 Database Lockouts . | . . . . . . . . . . . . . . . . . . . . . . . . . . . . . . . . . Manual 81 | . 5 . 12 . 5 12 . . 5 . . . . 16 . . 5 . . . . . . . 6 2 1 . 3 6 3 . Terminals 87 | . 5 . 22 . 7 14 2 . 6 . . . . 16 . . . . . . . . . . 2 2 . . 3 2 . 6 Fabricators 27 | . . . . . . . . . 3 . . . . 10 . . . . . 4 . . . . . . . . . 5 5 . Repair Stations 22 | . . . . . . 6 . . 5 . . . . . . . . . . . . . . . 3 . . . . . 3 5 Recycling Units 23 | . . . . . . . . . . . . . . 5 . . . . . . . . . . 7 2 . . . 7 . 2 Scanalyzers 15 | . . . 4 . 6 . . . 5 . . . . . . . . . . . . . . . . . . . . . . . Garrison Access 11 | . . . . . . 1 . . . . . . . 2 . . . . . . . . . . . . . . . 3 3 2 Terminal Hacks 78 | . 2 1 11 1 1 6 . . 1 2 . 23 . 4 7 . . . . . 1 1 17 . . . . . . . . . Record 18 | . . . . . . . . . . . . 6 . . 7 . . . . . . . 5 . . . . . . . . . Part Schematic 15 | . . . . . . 1 . . . . . 10 . . . . . . . . . . 4 . . . . . . . . . Robot Schematic 5 | . . . . . . . . . . . . 4 . 1 . . . . . . . . . . . . . . . . . . Robot Analysis 9 | . 2 . 1 . 1 . . . . . . . . 1 . . . . . . . . 4 . . . . . . . . . Prototype ID Bank 11 | . . . 4 . . . . . . . . 3 . . . . . . . . . . 4 . . . . . . . . . Open Door 6 | . . 1 . 1 . . . . . 2 . . . . . . . . . . 1 1 . . . . . . . . . . Terminal Index 1 | . . . . . . . . . . . . . . 1 . . . . . . . . . . . . . . . . . . Fabricator Index 1 | . . . . . . . . . 1 . . . . . . . . . . . . . . . . . . . . . . . Unreport Threat 4 | . . . . . . 4 . . . . . . . . . . . . . . . . . . . . . . . . . . Locate Traps 4 | . . . 3 . . 1 . . . . . . . . . . . . . . . . . . . . . . . . . . Disarm Traps 2 | . . . 2 . . . . . . . . . . . . . . . . . . . . . . . . . . . . . Zone Layout 2 | . . . 1 . . . . . . . . . . 1 . . . . . . . . . . . . . . . . . . Fabricator Hacks 13 | . . . . . . . . . 3 . . . . 5 . . . . . 3 . . . . . . . . . 1 1 . Network Status 4 | . . . . . . . . . 1 . . . . 1 . . . . . . . . . . . . . . . 1 1 . Load Schematic 4 | . . . . . . . . . 1 . . . . 2 . . . . . 1 . . . . . . . . . . . . Build 5 | . . . . . . . . . 1 . . . . 2 . . . . . 2 . . . . . . . . . . . . Repair Station Hacks 9 | . . . . . . 3 . . 2 . . . . . . . . . . . . . . . 1 . . . . . 1 2 Scan Component 7 | . . . . . . 2 . . 2 . . . . . . . . . . . . . . . 1 . . . . . 1 1 Repair 2 | . . . . . . 1 . . . . . . . . . . . . . . . . . . . . . . . . . 1 Recycling Unit Hacks 5 | . . . . . . . . . . . . . . . . . . . . . . . . . 2 1 . . . 2 . . Retrieve Components 5 | . . . . . . . . . . . . . . . . . . . . . . . . . 2 1 . . . 2 . . Scanalyzer 14 | . . . 4 . 6 . . . 4 . . . . . . . . . . . . . . . . . . . . . . . Insert Component 7 | . . . 2 . 3 . . . 2 . . . . . . . . . . . . . . . . . . . . . . . Analyze 7 | . . . 2 . 3 . . . 2 . . . . . . . . . . . . . . . . . . . . . . . Garrison Access Hacks 3 | . . . . . . 1 . . . . . . . . . . . . . . . . . . . . . . . 1 1 . Seal Access 3 | . . . . . . 1 . . . . . . . . . . . . . . . . . . . . . . . 1 1 . Unauthorized Hacks 23 | . 1 . 1 . 1 1 . . 3 . . . . 6 . . . . . . . . . . 2 2 . . 2 3 1 . Terminals 14 | . 1 . 1 . 1 1 . . 2 . . . . 4 . . . . . . . . . . 1 1 . . 2 . . . Track 1 | . . . . . . . . . . . . . . 1 . . . . . . . . . . . . . . . . . . Assimilate 1 | . . . . . 1 . . . . . . . . . . . . . . . . . . . . . . . . . . . Botnet 8 | . . . 1 . . 1 . . 2 . . . . 2 . . . . . . . . . . 1 1 . . . . . . Disrupt 1 | . . . . . . . . . . . . . . 1 . . . . . . . . . . . . . . . . . . Sabotage 2 | . . . . . . . . . . . . . . . . . . . . . . . . . . . . . 2 . . . Search 1 | . 1 . . . . . . . . . . . . . . . . . . . . . . . . . . . . . . . Fabricators 4 | . . . . . . . . . . . . . . 1 . . . . . . . . . . . . . . . 2 1 . Report 2 | . . . . . . . . . . . . . . . . . . . . . . . . . . . . . . 1 1 . Haulers 1 | . . . . . . . . . . . . . . . . . . . . . . . . . . . . . . 1 . . Download 1 | . . . . . . . . . . . . . . 1 . . . . . . . . . . . . . . . . . . Repair Stations . | . . . . . . . . . . . . . . . . . . . . . . . . . . . . . . . . . Recycling Units 3 | . . . . . . . . . . . . . . . . . . . . . . . . . 1 1 . . . 1 . . Mask 3 | . . . . . . . . . . . . . . . . . . . . . . . . . 1 1 . . . 1 . . Scanalyzers 1 | . . . . . . . . . 1 . . . . . . . . . . . . . . . . . . . . . . . Extract 1 | . . . . . . . . . 1 . . . . . . . . . . . . . . . . . . . . . . . Garrison Access 1 | . . . . . . . . . . . . . . 1 . . . . . . . . . . . . . . . . . . Jam 1 | . . . . . . . . . . . . . . 1 . . . . . . . . . . . . . . . . . . Data Cores Recovered 5 | . . . 1 . 1 1 . . . . . . . 2 . . . . . . . . . . . . . . . . . . Used 2 | . . . . . 1 1 . . . . . . . . . . . . . . . . . . . . . . . . . . Hacking Detections 48 | . 2 . 5 . 2 6 1 . 5 . . . . 10 . . . . . 1 . . . . 4 1 1 . . 4 2 4 Full Trace Events 9 | . . . 1 . 1 . 1 . 1 . . . . 2 . . . . . 1 . . . . 1 . . . . . . 1 Feedback Events . | . . . . . . . . . . . . . . . . . . . . . . . . . . . . . . . . . Feedback Blocked . | . . . . . . . . . . . . . . . . . . . . . . . . . . . . . . . . . Robot Schematics Acquired 9 | . . . . . . . . . . . . 4 . 1 . . 4 . . . . . . . . . . . . . . . Robots Built 4 | . . . . . . . . . . . . . . 2 . . . . . 2 . . . . . . . . . . . . Authchips 1 | . . . . . . . . . . . . . . 1 . . . . . . . . . . . . . . . . . . Time 202 | . . . . . . . . . . . . . . 50 . . . . . 152 . . . . . . . . . . . . Total Robot Build Rating 20 | . . . . . . . . . . . . . . 10 . . . . . 10 . . . . . . . . . . . . Part Schematics Acquired 37 | . . . 2 . 2 1 . . 3 . . 10 . 1 . . 14 . . . . . 4 . . . . . . . . . Parts Built 3 | . . . . . . . . . 1 . . . . 1 . . . . . 1 . . . . . . . . . . . . Authchips . | . . . . . . . . . . . . . . . . . . . . . . . . . . . . . . . . . Time 277 | . . . . . . . . . 73 . . . . 35 . . . . . 169 . . . . . . . . . . . . Total Part Build Rating 15 | . . . . . . . . . 3 . . . . 6 . . . . . 6 . . . . . . . . . . . . Parts Repaired 2 | . . . . . . 1 . . . . . . . . . . . . . . . . . . . . . . . . . 1 Time 33 | . . . . . . 19 . . . . . . . . . . . . . . . . . . . . . . . . . 14 Parts Recycled . | . . . . . . . . . . . . . . . . . . . . . . . . . . . . . . . . . Recycled Matter . | . . . . . . . . . . . . . . . . . . . . . . . . . . . . . . . . . Retrieved Matter . | . . . . . . . . . . . . . . . . . . . . . . . . . . . . . . . . . Retrieved Components 19 | . . . . . . . . . . . . . . . . . . . . . . . . . 14 3 . . . 2 . . Parts Scanalyzed 6 | . . . 2 . 2 . . . 2 . . . . . . . . . . . . . . . . . . . . . . . Part Schematics Acquired 6 | . . . 2 . 2 . . . 2 . . . . . . . . . . . . . . . . . . . . . . . Parts Damaged . | . . . . . . . . . . . . . . . . . . . . . . . . . . . . . . . . . Bothacking | -11 -10 -10 -9 -9 -8 -8 -7 -7 -7 -7 -7 -7 -6 -6 -6 -6 -6 -6 -5 -5 -5 -5 -5 -4 -4 -4 -4 -4 -4 -3 -2 -1 ------------ Run | Scr Mat Min Mat Min Mat Sto Fac Was Fac Low Low Dat Pro Fac Low Low Zio Dee Pro Fac Upp Upp Zhi Pro Fac Ext Cet Arc Hub Res Res Acc Used RIF Installer . | . . . . . . . . . . . . . . . . . . . . . . . . . . . . . . . . . Robots Hacked . | . . . . . . . . . . . . . . . . . . . . . . . . . . . . . . . . . Non-combat . | . . . . . . . . . . . . . . . . . . . . . . . . . . . . . . . . . Combat . | . . . . . . . . . . . . . . . . . . . . . . . . . . . . . . . . . Robot Hacks Applied . | . . . . . . . . . . . . . . . . . . . . . . . . . . . . . . . . . Relay Couplers Released 6 | . . . . . . . . . . . . . . . . . . . . . . . . . 1 . . . . 3 2 . Machine Destruction 6 | . . . . . . . . . . . . . . . . . . . . . . . . . 1 . . . . 3 2 . Fabnet Peak Effective % . | . . . . . . . . . . . . . . . . . . . . . . . . . . . . . . . . . Robots Rewired 25 | . . . . . . . . . . 2 . . 2 . . . . . . . . . . . . 21 . . . . . . Allies Hacked . | . . . . . . . . . . . . . . . . . . . . . . . . . . . . . . . . . Hacks Repelled . | . . . . . . . . . . . . . . . . . . . . . . . . . . . . . . . . . Allies | -11 -10 -10 -9 -9 -8 -8 -7 -7 -7 -7 -7 -7 -6 -6 -6 -6 -6 -6 -5 -5 -5 -5 -5 -4 -4 -4 -4 -4 -4 -3 -2 -1 -------- Run | Scr Mat Min Mat Min Mat Sto Fac Was Fac Low Low Dat Pro Fac Low Low Zio Dee Pro Fac Upp Upp Zhi Pro Fac Ext Cet Arc Hub Res Res Acc Total Allies 60 | . . . . 3 . 13 . . . 2 1 . 3 2 . . 2 . . 2 . . . . . 27 5 . . . . . Largest Group 25 | . . . . 3 3 11 3 . . 2 3 2 3 2 2 2 4 4 1 2 2 1 . . . 25 11 4 3 . . . Highest-Rated Group 1139 | . . . . 40 40 273 58 . . 52 151 129 193 126 82 82 274 274 41 82 82 41 . . . 1139 557 447 288 . . . Highest-Rated Ally 159 | . . . . 16 16 100 29 . . 32 99 97 97 97 41 41 96 96 41 41 41 41 . . . 159 159 159 96 . . . Total Orders 71 | . . . . . . . . 2 . 17 . . 3 2 4 4 . 8 3 3 10 . . . . . . 4 . 4 1 6 STAY 24 | . . . . . . . . . . 4 . . . 1 2 2 . 4 2 2 5 . . . . . . 2 . . . . FOLLOW 22 | . . . . . . . . . . 4 . . . 1 2 2 . 4 1 1 5 . . . . . . 2 . . . . EXPLORE 11 | . . . . . . . . 2 . 6 . . 3 . . . . . . . . . . . . . . . . . . . RETURN 14 | . . . . . . . . . . 3 . . . . . . . . . . . . . . . . . . . 4 1 6 Ally Attacks 528 | . . . . . 15 137 6 . . 3 16 . 38 25 1 . . 28 7 4 18 6 . . . 77 92 4 29 . . 22 Total Damage 17952 | . . . . . 157 3999 69 . . 56 772 . 1504 1775 49 . . 737 334 108 667 148 . . . 2712 2798 166 1497 . . 404 Kills 124 | . . . . . 4 40 . . . 2 4 . 9 13 . . . 3 . 2 3 . . . . 13 19 2 9 . . 1 Allies Corrupted 2 | . . . . . . . . . . . . . . . . . . . . . . . . . . . . . 2 . . . Allies Melted 1 | . . . . . . . . . . . . . . . . . . 1 . . . . . . . . . . . . . . Intel | -11 -10 -10 -9 -9 -8 -8 -7 -7 -7 -7 -7 -7 -6 -6 -6 -6 -6 -6 -5 -5 -5 -5 -5 -4 -4 -4 -4 -4 -4 -3 -2 -1 ------- Run | Scr Mat Min Mat Min Mat Sto Fac Was Fac Low Low Dat Pro Fac Low Low Zio Dee Pro Fac Upp Upp Zhi Pro Fac Ext Cet Arc Hub Res Res Acc Robot Analysis Total 9 | . 2 . 1 . 1 . . . . . . . . 1 . . . . . . . . 4 . . . . . . . . . Derelict Logs Recovered 16 | . . . . 2 . . . . . 1 2 . 3 . 1 2 1 . 2 . 1 1 . . . . . . . . . . Drone Launches 31 | . . . . . . . . 2 . 10 . . 3 . . . . . . . . . . . . . . . . 4 1 11 Drone Recoveries 21 | . . . . . . . . . . 6 . . 2 . . . . . . . . . . . . . . . . 4 1 8 Exploration | -11 -10 -10 -9 -9 -8 -8 -7 -7 -7 -7 -7 -7 -6 -6 -6 -6 -6 -6 -5 -5 -5 -5 -5 -4 -4 -4 -4 -4 -4 -3 -2 -1 ------------- Run | Scr Mat Min Mat Min Mat Sto Fac Was Fac Low Low Dat Pro Fac Low Low Zio Dee Pro Fac Upp Upp Zhi Pro Fac Ext Cet Arc Hub Res Res Acc Turns Passed 45746 | 5 449 920 812 773 958 1292 1115 101 871 7642 1481 139 1131 1324 1894 1430 1348 6118 1017 678 2719 1349 299 504 594 2001 363 866 477 1693 1407 1976 Spaces Moved 21627 | 1 237 410 505 514 565 688 597 73 476 3576 920 82 598 686 1035 873 845 2113 433 365 1124 530 206 301 310 759 167 122 178 650 735 953 Core . | . . . . . . . . . . . . . . . . . . . . . . . . . . . . . . . . . Treads 2027 | 1 237 410 . . . . . . . . . . . . . . . . . . . . . . . . 121 122 178 648 310 . Legs 6198 | . . . . . . . . . . . . . . . . . . 744 433 365 1124 530 206 301 310 759 46 . . 2 425 953 Wheels 13402 | . . . 505 514 565 688 597 73 476 3576 920 82 598 686 1035 873 845 1369 . . . . . . . . . . . . . . Hover . | . . . . . . . . . . . . . . . . . . . . . . . . . . . . . . . . . Flight . | . . . . . . . . . . . . . . . . . . . . . . . . . . . . . . . . . Fastest Speed 118 | 160 160 160 120 135 135 135 150 120 145 120 150 150 150 150 150 155 155 155 194 128 128 122 128 132 132 127 132 160 160 160 125 118 Average Speed 150 | 160 160 160 123 135 135 147 150 135 146 143 150 150 163 163 164 155 155 189 194 135 133 128 130 132 132 131 158 160 160 160 145 126 Slowest Speed 285 | 160 160 160 135 135 135 150 225 150 150 225 150 150 165 165 165 165 170 285 194 194 194 197 132 132 132 132 183 160 160 210 240 130 Overloaded Moves . | . . . . . . . . . . . . . . . . . . . . . . . . . . . . . . . . . Propulsion Burnouts . | . . . . . . . . . . . . . . . . . . . . . . . . . . . . . . . . . Robots Hopped . | . . . . . . . . . . . . . . . . . . . . . . . . . . . . . . . . . Cave-ins Triggered . | . . . . . . . . . . . . . . . . . . . . . . . . . . . . . . . . . Exploration Rate (%) 59 | 2 34 78 51 96 43 95 20 78 14 99 88 70 74 19 97 96 86 87 66 8 97 67 60 48 10 86 65 83 43 28 30 37 Regions Visited 32 Branch Regions 20 Pre-discovered Areas 7 | . . 1 . 1 . . . . . . . 1 . . . . 1 . . . . . 3 . . . . . . . . . Known Exits Taken 10 | . . . . . . 1 . . . . . . 1 1 . . . . 1 1 . . . 1 1 1 1 . . 1 . . Unknown Exits Taken 20 | 1 1 1 1 1 1 . . . 1 1 1 1 . . 1 1 1 1 . . 1 1 1 . . . . 1 1 . 1 . Scrap Searched 28 | . . 1 . 1 . . . . . 3 3 . 3 . 5 3 3 . 1 . 4 1 . . . . . . . . . . Spaces Dug 237 | . . . 19 14 . . 1 . 2 22 . . . 15 8 12 . 30 . . . 2 . 10 2 3 . . . 39 17 41 Terrain Destroyed 1355 | . . . 30 78 60 7 15 . 64 85 10 . 16 38 56 73 . 71 7 21 14 8 . 35 168 77 10 9 14 102 33 254 Melee 32 | . . . . . . . . . . 20 . . . 3 8 1 . . . . . . . . . . . . . . . . Projectile 383 | . . . 1 2 1 7 2 . 4 12 1 . 16 19 1 2 . 50 7 5 14 8 . 14 11 28 10 9 14 73 33 39 AOE 940 | . . . 29 76 59 . 13 . 60 53 9 . . 16 47 70 . 21 . 16 . . . 21 157 49 . . . 29 . 215 Terrain Rammed . | . . . . . . . . . . . . . . . . . . . . . . . . . . . . . . . . . Walls Destroyed . | . . . . . . . . . . . . . . . . . . . . . . . . . . . . . . . . . Machines Disabled . | . . . . . . . . . . . . . . . . . . . . . . . . . . . . . . . . . Actions | -11 -10 -10 -9 -9 -8 -8 -7 -7 -7 -7 -7 -7 -6 -6 -6 -6 -6 -6 -5 -5 -5 -5 -5 -4 -4 -4 -4 -4 -4 -3 -2 -1 --------- Run | Scr Mat Min Mat Min Mat Sto Fac Was Fac Low Low Dat Pro Fac Low Low Zio Dee Pro Fac Upp Upp Zhi Pro Fac Ext Cet Arc Hub Res Res Acc Total 32846 | 3 280 639 642 559 677 888 746 74 591 5981 1006 98 717 819 1181 930 881 4040 589 520 2301 1166 235 393 416 1651 226 773 324 1084 959 1457 Wait 8897 | . 13 193 73 13 40 132 86 1 29 2198 64 16 53 55 111 24 17 1605 142 117 1100 608 2 83 46 740 13 586 117 281 118 221 Move 21596 | . 236 409 504 513 564 687 597 72 475 3575 919 81 597 685 1034 872 844 2112 432 364 1123 529 205 300 309 758 166 121 177 649 734 953 Hop . | . . . . . . . . . . . . . . . . . . . . . . . . . . . . . . . . . Pick Up 234 | . 9 9 5 3 3 10 6 . 12 34 7 . 2 7 1 4 4 53 . 1 16 . 4 . 4 2 4 12 3 7 8 4 Fast Attach 101 | . 1 . 4 . 3 4 4 . 4 6 . . 6 3 2 3 3 11 . 1 3 2 7 . 3 3 4 5 . 2 5 12 Attach 72 | . . 1 2 . 1 . 2 . 7 11 3 . 1 3 . 1 . 7 . . 1 . 1 . 2 1 2 2 1 1 5 17 Detach 157 | . . . . . 1 2 . . 4 11 . . 1 1 . . . 20 1 3 8 6 . 1 4 15 6 13 1 6 16 37 Swap 180 | 3 1 3 10 5 10 6 11 1 10 5 3 1 2 16 8 9 5 14 4 3 6 1 1 1 4 7 1 2 . 18 1 8 Drop 275 | . 5 4 11 5 10 7 5 . 15 38 1 . 8 8 2 5 7 48 . 8 19 2 10 . 4 5 6 17 3 7 6 9 Fire 1109 | . 14 17 33 20 45 40 35 . 35 41 6 . 21 38 7 11 . 157 10 23 25 18 2 8 39 58 24 15 22 113 61 171 Melee 104 | . . . . . . . . . . 32 3 . . 3 16 1 1 12 . . . . . . . 36 . . . . . . Ram 2 | . . . . . . . . . . . . . . . . . . . . . . . . . . . . . . . . 2 Kick 29 | . . . . . . . . . . . . . . . . . . . . . . . . . 1 3 . . . . 5 20 Crush 6 | . 1 3 . . . . . . . . . . . . . . . . . . . . . . . . . . . . . 2 Escape Stasis 7 | . . . . . . . . . . . . . . . . . . . . . . . . . . 6 . . . . . 1 Rewire 74 | . . . . . . . . . . 27 . . 26 . . . . 1 . . . . 3 . . 17 . . . . . . Trap 3 | . . . . . . . . . . 3 . . . . . . . . . . . . . . . . . . . . . . Miscellaneous . | . . . . . . . . . . . . . . . . . . . . . . . . . . . . . . . . . Route ------- -11/Scrapyard -10/Materials (discovered 2 exits: *Min x2) -10/Mines (discovered 2 exits: *Mat / [*Exi]) -9/Materials (discovered 2 exits: *Mat / *Min) -9/Mines (discovered 2 exits: *Mat x2) -8/Materials (discovered 3 exits: *Fac x2 / *Sto) -8/Storage (discovered 2 exits: *Fac / [*Rec]) -7/Factory -7/Waste -7/Factory (discovered 2 exits: *Fac / *Low) -7/Lower Caves -7/Lower Caves (discovered 2 exits: *Fac / *Dat) -7/Data Miner -6/Proximity Caves -6/Factory (discovered 4 exits: *Fac x2 / *Low x2) -6/Lower Caves -6/Lower Caves (discovered 2 exits: *Fac / *Zio) -6/Zion (discovered 2 exits: [*Dee] / [*Pro]) -6/Deep Caves -5/Proximity Caves -5/Factory (discovered 3 exits: Fac x2 / *Upp) -5/Upper Caves -5/Upper Caves (discovered 2 exits: *Fac / *Zhi) -5/Zhirov -4/Proximity Caves -4/Factory -4/Extension (discovered 2 exits: *Res / *Cet) -4/Cetus (discovered 2 exits: *Res / *Arc) -4/Archives (discovered 2 exits: *Hub x2) -4/Hub_04(d) (discovered 3 exits: *Res x3) -3/Research (discovered 2 exits: *Res x2) -2/Research -1/Access To Epsilon Eridani History --------- Turn | Location | Event 6 | -11/Scrapyard | Discovered new exit (range 0) 6 | -11/Scrapyard | Entered Materials 234 | -10/Materials | Discovered new exit (range 7) 303 | -10/Materials | Build established: Mutant 431 | -10/Materials | Discovered new exit (range 14) 455 | -10/Materials | Entered Mines 455 | -10/Mines | Discovered new exit (range 10) 503 | -10/Mines | Met a Derelict bent on vengeance 580 | -10/Mines | Assembled infested the area 585 | -10/Mines | Assisted by a Guerilla fighting off Assembled 894 | -10/Mines | Learned location of Storage (-8) 1124 | -10/Mines | Deemed a non-threat by the Exiles lab entrance 1124 | -10/Mines | Discovered new exit (range 5) 1200 | -10/Mines | Met a Derelict shopkeep closing up shop 1375 | -10/Mines | Entered Materials 1375 | -9/Materials | Evolved 2 slots: Propulsion x1, Utility x1 1779 | -9/Materials | Discovered new exit (range 16) 2015 | -9/Materials | Destroyed 9 combat bots 2069 | -9/Materials | Discovered new exit (range 16) 2187 | -9/Materials | Entered Mines 2341 | -9/Mines | Found a damaged Exp. Sensor Array with a note attached 2344 | -9/Mines | Found Prototype Device 2438 | -9/Mines | Discovered new exit (range 9) 2577 | -9/Mines | A weapon hastily lodged in a ceiling crevice suddenly fell to the ground 2621 | -9/Mines | Assisted by bots powering up and referring to "LRC-V3" 2717 | -9/Mines | Received a Rocket Launcher from a helpful Derelict 2769 | -9/Mines | Discovered new exit (range 12) 2860 | -9/Mines | Met a Derelict who couldn't figure out how to use a Trap Extractor 2960 | -9/Mines | Entered Materials 2960 | -8/Materials | Accompanied by 3 allies 2960 | -8/Materials | Evolved 2 slots: Utility x2 2961 | -8/Materials | Identified exit to Factory 2969 | -8/Materials | Discovered new exit (range 16) 2989 | -8/Materials | Identified Exp. Sensor Array 3442 | -8/Materials | Discovered exit to Factory (range 11) 3918 | -8/Materials | Entered Storage 3935 | -8/Storage | Met 01-MTF 3969 | -8/Storage | Garrison activated, responded to threat 4297 | -8/Storage | Discovered new exit (range 8) 4318 | -8/Storage | First assault squad dispatched 4501 | -8/Storage | Assisted by bots powering up and referring to "LRC-V3" 4750 | -8/Storage | Discovered exit to Factory (range 9) 4793 | -8/Storage | Build established: Commander-Mutant 5089 | -8/Storage | Repaired Assault Cannon 5210 | -8/Storage | Entered Factory 5210 | -7/Factory | Accompanied by 4 allies (01-MTF) 5210 | -7/Factory | Evolved 2 slots: Propulsion x1, Utility x1 5215 | -7/Factory | 01-MTF left 5462 | -7/Factory | Build established: Mutant 5660 | -7/Factory | Discovered new exit (range 20) 5752 | -7/Factory | Identified exit to Factory 6325 | -7/Factory | Sucked down chute 6325 | -7/Factory | Entered Waste 6340 | -7/Waste | EMP discharged 6343 | -7/Waste | Spotted C-40 Crusher 6352 | -7/Waste | Spotted C-40 Crusher 6361 | -7/Waste | Spotted C-40 Crusher 6370 | -7/Waste | Spotted C-40 Crusher 6377 | -7/Waste | Spotted C-40 Crusher 6380 | -7/Waste | Spotted C-40 Crusher 6388 | -7/Waste | Crushed by Compactor (1 part destroyed, 1 dropped) 6390 | -7/Waste | Crushed by Compactor (1 part destroyed, 2 dropped) 6415 | -7/Waste | Discovered new exit (range 10) 6426 | -7/Waste | Entered Factory 6735 | -7/Factory | Discovered new exit (range 18) 6893 | -7/Factory | Discovered exit to Factory (range 5) 7120 | -7/Factory | Fabricated Hvy. Assault Cannon? 7198 | -7/Factory | Found Prototype Launcher 7198 | -7/Factory | Identified Rocket Array 7247 | -7/Factory | Garrison activated, responded to threat 7297 | -7/Factory | Entered Lower Caves 7351 | -7/Lower Caves | Attracted the attention of an 0b10 checkpoint 7712 | -7/Lower Caves | Attracted the attention of an 0b10 outpost 7771 | -7/Lower Caves | Lost 3 parts (1n2u) 8163 | -7/Lower Caves | Encountered a Warlord checkpoint 8163 | -7/Lower Caves | Discovered new exit (range 35) 8449 | -7/Lower Caves | Learned location of 1 exit from Factory 9103 | -7/Lower Caves | Spotted B-75 Beast 9114 | -7/Lower Caves | Destroyed B-75 Beast 9181 | -7/Lower Caves | Found Prototype Device 9181 | -7/Lower Caves | Identified Heart of Steel 14939 | -7/Lower Caves | Entered another Lower Caves area 14939 | -7/Lower Caves | Accompanied by 2 allies 15210 | -7/Lower Caves | Discovered exit to Factory (range 13) 15342 | -7/Lower Caves | Heart of Steel transformed into Warbot 15569 | -7/Lower Caves | Learned location of 1 exit from Factory 15752 | -7/Lower Caves | Encountered a Warlord checkpoint 16025 | -7/Lower Caves | Learned Factory security intel 16291 | -7/Lower Caves | Discovered new exit (range 12) 16420 | -7/Lower Caves | Entered Data Miner 16420 | -7/Data Miner | Accompanied by 2 allies (Warbot) 16420 | -7/Data Miner | Discovered new exit (range 6) 16449 | -7/Data Miner | Met Data Miner 16484 | -7/Data Miner | Learned location of Section 7 (-2) 16484 | -7/Data Miner | Acquired the access code to Warlord's prototype stash 16507 | -7/Data Miner | Received God Mode back door access code from Data Miner 16559 | -7/Data Miner | Entered Proximity Caves 16559 | -6/Proximity Caves | Accompanied by 2 allies (Warbot) 16560 | -6/Proximity Caves | P-60 Hacker assimilated allied Guardian 4a 16590 | -6/Proximity Caves | Learned location of 1 exit from Factory 16689 | -6/Proximity Caves | Escorted by Enhanced Grunt 16700 | -6/Proximity Caves | Attracted the attention of an 0b10 outpost 17435 | -6/Proximity Caves | Learned Factory terminal intel 17613 | -6/Proximity Caves | Discovered exit to Factory (range 9) 17635 | -6/Proximity Caves | Learned Factory stockpile data 17690 | -6/Proximity Caves | Entered Factory 17690 | -6/Factory | Accompanied by 2 allies (Warbot) 17690 | -6/Factory | Evolved 2 slots: Propulsion x1, Utility x1 17691 | -6/Factory | Identified exit to Lower Caves 17691 | -6/Factory | Identified exit to Factory 17694 | -6/Factory | Loaded intel: 26 terminal locations 18411 | -6/Factory | Discovered exit to Factory (range 15) 18812 | -6/Factory | Fabricated H-66 Slayer? 18865 | -6/Factory | Fabricated Hvy. Mass Driver? 19014 | -6/Factory | Entered Lower Caves 19014 | -6/Lower Caves | Accompanied by 2 allies 19122 | -6/Lower Caves | Learned Research stockpile data 19122 | -6/Lower Caves | Learned Research terminal intel 19129 | -6/Lower Caves | Learned 8 Factory zone layouts 19568 | -6/Lower Caves | Destroyed UW-VNW(g) 20219 | -6/Lower Caves | Attracted the attention of an 0b10 checkpoint 20522 | -6/Lower Caves | Discovered new exit (range 11) 20908 | -6/Lower Caves | Entered another Lower Caves area 20908 | -6/Lower Caves | Accompanied by 2 allies 20908 | -6/Lower Caves | Discovered exit to Factory (range 4) 21635 | -6/Lower Caves | Build established: Derelict-Mutant 21733 | -6/Lower Caves | Found Alien Artifact 21733 | -6/Lower Caves | Identified Core Expander 21733 | -6/Lower Caves | Installed Core Expander, added new Power slot 22029 | -6/Lower Caves | Encountered a Warlord checkpoint 22052 | -6/Lower Caves | Discovered new exit (range 10) 22172 | -6/Lower Caves | Learned Factory machine intel 22338 | -6/Lower Caves | Entered Zion 22338 | -6/Zion | Accompanied by 2 allies 22404 | -6/Zion | Build established: Mutant 22441 | -6/Zion | Discovered new exit (range 14) 22447 | -6/Zion | Given the Hacking Drone Bay 22448 | -6/Zion | Found Prototype Device 22449 | -6/Zion | Identified Hacking Drone Bay 22486 | -6/Zion | Found Prototype Device 22486 | -6/Zion | Identified Mobile Refinery Mk. CCLXVII 22609 | -6/Zion | Learned 4 Factory zone layouts 22847 | -6/Zion | Found Prototype Special Weapon 22847 | -6/Zion | Identified RU-N14's Throwing Claymores 22850 | -6/Zion | Found RU-N14's Throwing Claymores 22853 | -6/Zion | Found RU-N14's Throwing Claymores 22859 | -6/Zion | Found RU-N14's Throwing Claymores 23094 | -6/Zion | Given A8's code to call for help 23513 | -6/Zion | Acquired unknown access codes intercepted by a Zionite 23638 | -6/Zion | Opened final containment barrier to the Deep Caves 23650 | -6/Zion | Enhanced Grunt warped into view, answering call for help 23656 | -6/Zion | Enhanced Grunt warped into view, answering call for help 23678 | -6/Zion | Discovered new exit (range 3) 23678 | -6/Zion | Saw the warning signs outside the Deep Caves entrance 23686 | -6/Zion | Entered Deep Caves 23686 | -6/Deep Caves | Accompanied by 4 allies 23842 | -6/Deep Caves | Attacked by Z-Imprinter 23875 | -6/Deep Caves | Allies destroyed Z-Imprinter 23894 | -6/Deep Caves | Found Prototype Device 23894 | -6/Deep Caves | Identified Exp. Thermal Shield 24007 | -6/Deep Caves | Z-Facility disabled 24376 | -6/Deep Caves | Build established: Derelict-Mutant 24666 | -6/Deep Caves | Found Prototype Protection 24673 | -6/Deep Caves | Identified Zio. Heavy Carapace 24714 | -6/Deep Caves | Found Prototype Protection 24748 | -6/Deep Caves | Identified Zio. Weapon Casing 25853 | -6/Deep Caves | Discovered new exit (range 6) 25951 | -6/Deep Caves | Spotted as-33565 25955 | -6/Deep Caves | Exposed GOLEM chamber 25961 | -6/Deep Caves | Destroyed as-33565 26017 | -6/Deep Caves | Triggered Deep Caves wall 26027 | -6/Deep Caves | Spotted AS-01972 26055 | -6/Deep Caves | Destroyed AS-01972 26059 | -6/Deep Caves | Spotted AS-32073 26067 | -6/Deep Caves | Destroyed AS-32073 26069 | -6/Deep Caves | Lost 3 parts (2n1u) 26085 | -6/Deep Caves | Found GOLEM Unit 26113 | -6/Deep Caves | Destroyed 55 combat bots 26303 | -6/Deep Caves | Build established: Mutant 27252 | -6/Deep Caves | Spotted as-72112 27298 | -6/Deep Caves | Destroyed as-72112 27327 | -6/Deep Caves | Lost 3 parts (3u) 27381 | -6/Deep Caves | Found GOLEM Unit 27672 | -6/Deep Caves | Build established: Golem 29217 | -6/Deep Caves | Found Prototype Processor 29253 | -6/Deep Caves | Found GOLEM Unit 29260 | -6/Deep Caves | Found GOLEM Unit 29474 | -6/Deep Caves | Identified 0b10 Alert Chip 29804 | -6/Deep Caves | Entered Proximity Caves 29804 | -5/Proximity Caves | Accompanied by 1 ally 30159 | -5/Proximity Caves | Learned 4 Factory zone layouts 30218 | -5/Proximity Caves | Learned location of 1 exit from Factory 30573 | -5/Proximity Caves | Discovered exit to Factory (range 8) 30657 | -5/Proximity Caves | Spotted B-75 Beast 30821 | -5/Proximity Caves | Entered Factory 30821 | -5/Factory | Evolved 2 slots: Utility x2 30822 | -5/Factory | Identified exit to Upper Caves 30823 | -5/Factory | Identified exit to Factory 30825 | -5/Factory | Loaded intel: 253 machine locations 31153 | -5/Factory | Fabricated H-66 Slayer? 31352 | -5/Factory | Fabricated Combat Drone Bay? 31499 | -5/Factory | Entered Upper Caves 31499 | -5/Upper Caves | Accompanied by 2 allies 31926 | -5/Upper Caves | Learned 4 Factory zone layouts 32110 | -5/Upper Caves | Attacked by a faux Warlord 32916 | -5/Upper Caves | Attracted the attention of an 0b10 checkpoint 33093 | -5/Upper Caves | Discovered new exit (range 9) 34218 | -5/Upper Caves | Entered another Upper Caves area 34218 | -5/Upper Caves | Accompanied by 1 ally 34218 | -5/Upper Caves | Spotted B-75 Beast 34230 | -5/Upper Caves | Destroyed B-75 Beast 34261 | -5/Upper Caves | Discovered exit to Factory (range 14) 34362 | -5/Upper Caves | Attracted the attention of an 0b10 checkpoint 34511 | -5/Upper Caves | Learned Factory security intel 34689 | -5/Upper Caves | Discovered new exit (range 11) 35567 | -5/Upper Caves | Entered Zhirov 35567 | -5/Zhirov | Discovered new exit (range 3) 35591 | -5/Zhirov | Met Zhirov 35619 | -5/Zhirov | Learned location of Quarantine (-2) 35619 | -5/Zhirov | Learned location of Testing (-3) 35619 | -5/Zhirov | Learned location of Command (-1) 35626 | -5/Zhirov | Zhirov requested help retrieving the SGEMP Prototype 35649 | -5/Zhirov | Found Alien Artifact 35649 | -5/Zhirov | Identified Integrated Reactor 35649 | -5/Zhirov | Installed Integrated Reactor, increased core energy generation (+10) 35745 | -5/Zhirov | Found Alien Artifact 35866 | -5/Zhirov | Entered Proximity Caves 36353 | -4/Proximity Caves | Discovered exit to Factory (range 8) 36370 | -4/Proximity Caves | Entered Factory 36370 | -4/Factory | Evolved 2 slots: Utility x1, Weapon x1 36438 | -4/Factory | Found Prototype Processor 36438 | -4/Factory | Identified Exp. Targeting Computer 36844 | -4/Factory | Garrison activated, responded to threat 36908 | -4/Factory | Destroyed 9 combat bots 36957 | -4/Factory | Discovered new exit (range 6) 36962 | -4/Factory | Identified exit to Extension 36964 | -4/Factory | Entered Extension 36983 | -4/Extension | Lost 4 parts (3u1w) 37964 | -4/Extension | First assault squad dispatched 38099 | -4/Extension | Destroyed 9 combat bots 38306 | -4/Extension | Rescued a captive Derelict 38462 | -4/Extension | Build established: Commander-Golem 38465 | -4/Extension | Spotted B-86 Titan 38475 | -4/Extension | Allies destroyed B-86 Titan 38501 | -4/Extension | Spotted B-86 Titan 38508 | -4/Extension | Destroyed B-86 Titan 38599 | -4/Extension | Rescued A7 38652 | -4/Extension | Rescued a captive Derelict 38875 | -4/Extension | Rescued a captive Derelict 38908 | -4/Extension | Rescued a captive Derelict 38909 | -4/Extension | Rescued a captive Derelict 38937 | -4/Extension | Discovered new exit (range 10) 38938 | -4/Extension | Discovered new exit (range 6) 38945 | -4/Extension | Identified exit to Cetus 38965 | -4/Extension | Entered Cetus 38965 | -4/Cetus | Accompanied by 11 allies (A7) 38970 | -4/Cetus | Acquired a Cetus Manufacturing Module code from A7 38981 | -4/Cetus | Spotted Cetus Guard 38981 | -4/Cetus | Spotted Cetus Guard 38983 | -4/Cetus | Spotted Cetus Guard 38984 | -4/Cetus | Spotted Cetus Guard 38997 | -4/Cetus | Allies destroyed Cetus Guard 38999 | -4/Cetus | Allies destroyed Cetus Guard 39001 | -4/Cetus | Allies destroyed Cetus Guard 39005 | -4/Cetus | Allies destroyed Cetus Guard 39109 | -4/Cetus | Started Cetus Manufacturing Module 39122 | -4/Cetus | Escorted A7 to Cetus Mainframe 39134 | -4/Cetus | Manufactured an Enhanced Grunt 39139 | -4/Cetus | Discovered new exit (range 16) 39159 | -4/Cetus | Manufactured an Enhanced Grunt 39170 | -4/Cetus | Spotted Cetus Guard 39170 | -4/Cetus | Spotted Cetus Guard 39179 | -4/Cetus | Spotted Cetus Guard 39181 | -4/Cetus | Spotted Cetus Guard 39184 | -4/Cetus | Manufactured an Enhanced Grunt 39187 | -4/Cetus | Allies destroyed Cetus Guard 39191 | -4/Cetus | Destroyed Cetus Guard 39198 | -4/Cetus | Allies destroyed Cetus Guard 39203 | -4/Cetus | Allies destroyed Cetus Guard 39209 | -4/Cetus | Manufactured an Enhanced Grunt 39221 | -4/Cetus | Discovered new exit (range 16) 39231 | -4/Cetus | Met Revision 17 39234 | -4/Cetus | Manufactured an Enhanced Grunt 39321 | -4/Cetus | Identified exit to Archives 39328 | -4/Cetus | Entered Archives 39328 | -4/Archives | Accompanied by 4 allies (A7) 39333 | -4/Archives | Received a hacking code to weaken MAIN.C 39413 | -4/Archives | Discovered new exit (range 22) 39540 | -4/Archives | Build established: Scavenger-Golem 39993 | -4/Archives | Discovered new exit (range 20) 40194 | -4/Archives | Entered Hub_04(d) 40194 | -4/Hub_04(d) | Accompanied by 3 allies 40194 | -4/Hub_04(d) | Discovered new exit (range 20) 40207 | -4/Hub_04(d) | Network Hub disabled 40337 | -4/Hub_04(d) | Discovered new exit (range 20) 40346 | -4/Hub_04(d) | Discovered new exit (range 18) 40399 | -4/Hub_04(d) | Spotted Lightning 40491 | -4/Hub_04(d) | Found Prototype Energy Cannon 40516 | -4/Hub_04(d) | Network Hub disabled 40671 | -4/Hub_04(d) | Entered Research 40671 | -3/Research | Evolved 2 slots: Propulsion x1, Utility x1 40673 | -3/Research | Loaded intel: 18 terminal locations 41625 | -3/Research | Discovered new exit (range 7) 41661 | -3/Research | Identified exit to Research 41909 | -3/Research | Spotted B-86 Titan 42226 | -3/Research | System corruption reached 10% 42291 | -3/Research | Discovered exit to Research (range 21) 42364 | -3/Research | Entered another Research area 42364 | -2/Research | Evolved 2 slots: Utility x2 43474 | -2/Research | Spotted B-90 Cyclops 43506 | -2/Research | Incoming assault squad redirected 43525 | -2/Research | Spotted B-90 Cyclops 43529 | -2/Research | Destroyed B-90 Cyclops 43558 | -2/Research | Build established: Golem 43751 | -2/Research | Discovered new exit (range 10) 43771 | -2/Research | Entered Access 43771 | -1/Access | Evolved 2 slots: Utility x2 44155 | -1/Access | Repaired Hrd. Heavy Armor Plating 44306 | -1/Access | First assault squad dispatched 44326 | -1/Access | Garrison activated, responded to threat 44338 | -1/Access | Incoming assault squad redirected 44359 | -1/Access | Incoming assault squad redirected 44390 | -1/Access | Destroyed 9 combat bots 44495 | -1/Access | Found Fusion Bomb Launcher 44912 | -1/Access | Identified EMDS 45084 | -1/Access | Destroyed 7 combat bots 45164 | -1/Access | System corruption reached 10% 45290 | -1/Access | Incoming assault squad redirected 45334 | -1/Access | Spotted B-99 Colossus 45341 | -1/Access | Destroyed 7 combat bots 45344 | -1/Access | High security lockdown imminent 45404 | -1/Access | Lost 4 parts (3u1w) 45412 | -1/Access | Destroyed B-99 Colossus 45424 | -1/Access | High security lockdown engaged 45525 | -1/Access | Energy Cycler disabled 45652 | -1/Access | Spotted Investigator 45652 | -1/Access | Spotted Executioner 45663 | -1/Access | Scanned by Researcher 45679 | -1/Access | Destroyed Investigator 45687 | -1/Access | Spotted Striker 45687 | -1/Access | Spotted Executioner 45688 | -1/Access | Spotted Striker 45688 | -1/Access | Spotted Executioner 45715 | -1/Access | Discovered new exit (range 6) 45739 | -1/Access | Core integrity fell below 50% 45747 | *** | Escaped! Last Messages --------------- 45743_ Penetrated by Slug. 45743_ Slug penetrates Sealed Heavy Doors. 45744_ Acquired 2 matter. 45744_ Slammed into Striker. 45745_ Penetrated by Slug. 45745_ Slug penetrates Sealed Heavy Doors. 45745_ Penetrated by Slug. 45746_ C-30 ARC bursts open, deploying its payload. 45746_ G-73 Enforcer unfolds itself. 45746_ L-61 Swordsman unfolds itself. 45746_ G-73 Enforcer unfolds itself. 45746_ I-47 Archangel unfolds itself. 45746_ Penetrated by Slug. 45746_ Striker suffers critical hit (Destroy). 45746_ P-80 Master resets L-61 Swordsman, system corruption cleaned. 45746_ Penetrated by Slug. 45746_ GOLEM Unit destroyed. 45746_ Penetrated by Slug. 45747_ P-80 Master resets Executioner, system corruption cleaned. 45747_ Slammed into Striker. Map ----- +----------------------------------------------------+ | ??????????????????############## %=*% ! ######### | | ###???????????????# # % * *%########## | | #???????????????####### ! !# """"" | | #?????????????????????# # ""T"" | | #?????????????????????# % %#=%# | | #?????????????????????# *% %""" "#%!# | | #?????????????????????# """ #= /% """" | | #?????????????????????# F"" # # """" | | #?????????????????????# "" / %"% """" | | #?????????????????????# ] " " # # """" | | #?????????????????????# ] "" #% # """" | | ###?????????????????????# # # | | ????????????????????????# "% # | | ????????????????????????############## # | | ????????????????????????????????????#" ########## | | ????????????????????????????????????## ##???????? | | ?????????????????????????????????????# #????????? | | ?????????????????????????????????????#% #????????? | | ?????????????????????????????????????# #????????? | | ?????????????????????????????###?????# %#????????? | | ????????????????????########## ####### #????????? | | ????????????????????" %g m%lg #????????? | | ????????????????????" % E p gg l #????????? | | ????????????????????" %Kb %%%ggibgb #????????? | | ????????????????????" lhg l i% #????????? | | ????????????????????" "@hp% m E g #????????? | | ????????????????????" iK" m p #????????? | | ????????????????????" pp #????????? | | ????????????????????" l #????????? | | ????????????????????" """ "" #????????? | | ????????????????????" """T "" #????????? | | ????????????????????########## #######%%#????????? | | ?????????????????????????????###?# #%%#????????? | | ????????????????????????########## # % #?######## | | ????????????????????????# %# ] | | ????????????????????????# % # | | ????????????????????????# + "" | | ????????????????????????# ]]] =% % # """" | | ????????????????????????# ]]] *[ # """" | | ????????????????????????# ]]] # # """" | | #???????????????????????# # # """" | | #???????????????????????# ! # # """" | | #???????????????????????# # #? "" | | #???????????????????????# # #? "" | | #???????????????????????# # #? | | #???????????????????????# # #? | | #???????????????????????############## #??####### | | #????????????????????????????????????# #????????? | | #??????????????####################### #????????? | | #??????????????# #????????? | +----------------------------------------------------+ Best States ------------- Heat Dissipation 112 Energy Generation 55 Energy Capacity 2190 Matter Stores 300 Matter Capacity 300 Sight Range 22 Robot Scan Range 20 Terrain Scan Density 10 Additional Mass Support 20 Corruption Block 8 Armor Coverage 1850 Resistance: KI 15 Resistance: TH 15 Resistance: EX 15 Resistance: EM 15 Resistance: I 15 Resistance: S 15 Resistance: P 15 Utility Shielding 90 Weapon Cycling 15 Phase Shifting 8 Evasion (%) 69 Targeting Accuracy 8 Core Analysis 8 Recoil Reduction 4 Particle Charging 25 Offensive Hacking 10 Defensive Hacking 11 Authchip Count 1 Trap Extractor Capacity 6 Item Schematics ----------------- Bore Cannon | -9/Materials | Scanalyzed Arm. Wheel | -9/Materials | Scanalyzed Exp. Sensor Array | -8/Materials | Scanalyzed Hrd. Heavy Armor Plating | -8/Materials | Scanalyzed Hvy. Assault Cannon | -8/Storage | Hacked System Restoration Module | -7/Factory | Scanalyzed Weapon Cycler | -7/Factory | Scanalyzed Adv. Terrain Scan Processor | -7/Factory | Extracted Combat Drone Bay | -7/Data Miner | Free Lgt. Regenerative Plating | -7/Data Miner | Free Cld. Cesium-ion Thruster | -7/Data Miner | Free Exp. Power Shielding | -7/Data Miner | Free Imp. Heavy Machine Gun | -7/Data Miner | Free Antigrav System | -7/Data Miner | Free Imp. Shock Absorption System | -7/Data Miner | Free Imp. Remote Datajack | -7/Data Miner | Free Lyr. Medium Armor Plating | -7/Data Miner | Free Imp. Focal Shield | -7/Data Miner | Free Hvy. Mass Driver | -6/Factory | Downloaded Imp. Particle Charger | -6/Zion | Archive Imp. Dynamic Insulation System | -6/Zion | Archive Hvy. Beamcaster | -6/Zion | Archive Arc Thrower | -6/Zion | Archive Adv. Hacking Suite | -6/Zion | Archive Flexi-carbon Leg | -6/Zion | Archive Adv. Cryofiber Web | -6/Zion | Archive Imp. Corruption Screen | -6/Zion | Archive Angular Momentum Engine | -6/Zion | Archive 0b10 Decoder Chip [Scout] | -6/Zion | Archive Imp. Thermal Shield | -6/Zion | Archive Power Amplifier | -6/Zion | Archive Adv. Shield Generator | -6/Zion | Archive Adv. Coolant Injector | -6/Zion | Archive Assault Drone Bay | -5/Zhirov | Free Exp. Heat Sink | -5/Zhirov | Free Exp. Optical Array | -5/Zhirov | Free Imp. Arc Thrower | -5/Zhirov | Free Robot Schematics ------------------ Y-54 Guardian | -7/Data Miner | Free A-15 Conveyor | -7/Data Miner | Free M-28 Smith | -7/Data Miner | Free B-60 Warrior | -7/Data Miner | Free H-66 Slayer | -6/Factory | Hacked A-02 Transporter | -6/Zion | Archive R-10 Processor | -6/Zion | Archive G-50 Soldier | -6/Zion | Archive C-57 Dissector | -6/Zion | Archive Fabricated ------------ Hvy. Assault Cannon | x1 | -7/Factory H-66 Slayer | x2 | -6/Factory | Authchip Hvy. Mass Driver | x1 | -6/Factory H-66 Slayer | x2 | -5/Factory | Preloaded Combat Drone Bay | x1 | -5/Factory Alien Tech Used ----------------- Core Expander Integrated Reactor Achievements -------------- None Challenges ------------ None Game ------ Seed FluxThermoelectricInverter Manual? 0 Play Time 03:56:22 Cumulative 1092.4 hours Start 2022.03.23 @ 15:10:58 End 2022.03.26 @ 12:57:27 Sessions 7 Manual Loads 0 Difficulty Rogue Special Mode None Game No. 765 Rogue 761 Adventurer 4 Explorer 0 Win Type 0 Total 119 Types 91/9/8/5/2/0/0/2/2 Lore% 94 Gallery% 97 Achievement% 97 Wizard Run 0 Options --------- ASCII 0 Keyboard 1 Movement Vi Keybinds 0 Fullscreen 0 Font 16/Terminus Map View 76x50 Tactical HUD 1 Map Filters NONE Filters NONE Steam 1 RUN: b88be74a-5277-4cc1-98c6-e2359f51bb9d